bitfinex/quotes_SOLUSD_20250624
["timestamp","ask_amount","ask_price","bid_price","bid_amount"]
[1750731182188,26.0,143.13,143.09,8.64577641]
[1750731182585,8.64577641,143.12,143.08,8.64577641]
[1750731183108,8.64577641,143.13,143.09,8.64577641]
[1750731183291,8.64577641,143.13,143.09,15.63416319]
[1750731183493,34.64577641,143.13,143.09,15.63416319]
[1750731185905,34.64577641,143.13,143.09,8.64577641]
[1750731186200,8.64577641,143.1,143.06,8.64577641]
[1750731186710,8.64577641,143.1,143.06,18.64964886]
[1750731186998,8.64577641,143.1,143.06,27.29542527]
[1750731187206,8.64577641,143.12,143.07,8.64577641]
[1750731187410,8.64577641,143.12,143.07,98.04577641]
[1750731188681,26.0,143.13,143.07,98.04577641]
[1750731188888,8.64577641,143.12,143.07,98.04577641]
[1750731190234,8.64577641,143.12,143.07,96.3895546]
[1750731190408,8.64577641,143.12,143.07,105.03533101]
[1750731191181,8.64577641,143.12,143.07,96.3895546]
[1750731191377,8.64577641,143.12,143.07,105.03533101]
[1750731192201,34.64577641,143.1,143.06,89.4]
[1750731193704,34.64577641,143.1,143.06,105.0357766]
[1750731193888,8.64577641,143.11,143.06,105.0357766]
[1750731195622,8.64577641,143.11,143.06,96.39000019]
[1750731197215,26.0,143.13,143.07,27.29542527]
[1750731197400,34.64577641,143.13,143.08,8.64577641]
[1750731197918,8.64577641,143.12,143.08,8.64577641]
[1750731198123,8.64577641,143.12,143.07,89.4]
[1750731198318,8.64577641,143.1,143.07,89.4]
[1750731198496,8.64577641,143.1,143.06,15.6357766]
[1750731198822,26.0,143.13,143.07,8.64577641]
[1750731198823,8.64577641,143.11,143.07,8.64577641]
[1750731199199,8.64577641,143.11,143.07,15.63520928]
[1750731199508,8.64577641,143.12,143.07,15.63520928]
[1750731199698,8.64577641,143.12,143.07,105.03520928]
[1750731200012,26.0,143.13,143.07,96.38943287]
[1750731200013,8.64577641,143.11,143.07,96.38943287]
[1750731200316,5.76025055,143.11,143.07,96.38943287]
[1750731200612,5.76025055,143.11,143.07,102.14968342]
[1750731201919,5.76025055,143.12,143.07,102.14968342]
[1750731203314,5.76025055,143.11,143.07,102.14968342]
[1750731203618,5.76025055,143.11,143.07,89.4]
[1750731205720,26.0,143.13,143.07,89.4]
[1750731205914,5.76025055,143.11,143.07,89.4]
[1750731206224,5.76025055,143.1,143.07,89.4]
[1750731206407,5.76025055,143.1,143.06,96.38989999]
[1750731207620,26.0,143.13,143.06,96.38989999]
[1750731207798,5.76025055,143.11,143.06,96.38989999]
[1750731208000,5.76025055,143.1,143.06,96.38989999]
[1750731209734,5.76025055,143.09,143.06,89.4]
[1750731209931,5.76025055,143.09,143.04,122.4396904]
[1750731210427,5.76025055,143.08,143.04,122.4396904]
[1750731211408,5.76025055,143.08,143.04,98.02979099]
[1750731211615,5.76025055,143.07,143.04,98.02979099]
[1750731212809,26.0,143.11,143.04,98.02979099]
[1750731213033,5.76025055,143.08,143.04,98.02979099]
[1750731213724,26.0,143.1,143.05,5.76025055]
[1750731213918,31.76025055,143.1,143.05,5.76025055]
[1750731214127,5.76025055,143.1,143.05,5.76025055]
[1750731214548,26.0,143.11,143.05,5.76025055]
[1750731214713,31.76025055,143.11,143.06,5.76025055]
[1750731214918,31.76025055,143.11,143.07,5.76025055]
[1750731214919,26.0,143.11,143.07,5.76025055]
[1750731215113,26.0,143.11,143.08,6.989097]
[1750731215912,5.76025055,143.13,143.08,12.74934755]
[1750731216114,31.76025055,143.13,143.09,5.76025055]
[1750731216340,26.0,143.13,143.09,5.76025055]
[1750731216510,31.76025055,143.13,143.09,5.76025055]
[1750731217116,31.76025055,143.13,143.07,6.9894239]
[1750731217117,5.76025055,143.11,143.07,6.9894239]
[1750731217325,5.76025055,143.1,143.07,6.9894239]
[1750731217839,5.76025055,143.11,143.07,6.9894239]
[1750731219946,26.0,143.13,143.07,12.74967445]
[1750731220145,5.76025055,143.12,143.07,12.74967445]
[1750731220815,26.0,143.13,143.07,12.74967445]
[1750731221018,5.76025055,143.12,143.07,12.74967445]
[1750731221232,5.76025055,143.12,143.06,25.63972295]
[1750731221441,5.76025055,143.11,143.07,5.76025055]
[1750731221637,5.76025055,143.11,143.06,31.3999735]
[1750731222335,5.76025055,143.11,143.07,5.76025055]
[1750731222842,5.76025055,143.12,143.07,5.76025055]
[1750731223022,5.76025055,143.11,143.07,5.76025055]
[1750731223434,5.76025055,143.11,143.08,6.989097]
[1750731223634,31.12662675,143.13,143.08,12.74934755]
[1750731223949,31.12662675,143.13,143.08,102.14934755]
[1750731223950,31.76025055,143.13,143.08,102.14934755]
[1750731224122,26.0,143.13,143.09,5.76025055]
[1750731224322,26.0,143.13,143.09,18.64964886]
[1750731224520,31.12662675,143.13,143.09,24.40989941]
[1750731224936,5.12662675,143.13,143.12,5.76025055]
[1750731225144,5.12662675,143.15,143.12,5.76025055]
[1750731225447,5.76025055,143.16,143.12,12.74695419]
[1750731225636,10.8868773,143.16,143.12,12.74695419]
[1750731225830,31.76025055,143.17,143.12,12.74695419]
[1750731226023,5.12662675,143.17,143.13,5.76025055]
[1750731226332,5.76025055,143.15,143.11,14.79957468]
[1750731226542,5.76025055,143.15,143.11,20.55982523]
[1750731226738,5.76025055,143.16,143.11,20.55982523]
[1750731227234,31.76025055,143.17,143.12,5.76025055]
[1750731227771,31.76025055,143.17,143.12,12.74717274]
[1750731228245,31.76025055,143.17,143.11,7.8121]
[1750731228246,5.76025055,143.15,143.11,13.57235055]
[1750731228449,5.76025055,143.13,143.07,14.79873561]
[1750731228624,5.76025055,143.12,143.07,20.55898616]
[1750731228821,5.76025055,143.12,143.08,5.76025055]
[1750731229434,5.76025055,143.12,143.07,20.55898616]
[1750731230044,5.76025055,143.12,143.07,14.79873561]
[1750731230237,5.76025055,143.12,143.07,20.55898616]
[1750731232444,5.76025055,143.11,143.07,104.19873561]
[1750731234149,5.12662675,143.14,143.07,104.19873561]
[1750731234150,5.76025055,143.12,143.07,104.19873561]
[1750731234330,5.76025055,143.12,143.07,109.95898616]
[1750731234955,5.76025055,143.11,143.07,104.19873561]
[1750731235142,5.76025055,143.12,143.07,109.95898616]
[1750731235531,5.76025055,143.1,143.07,97.2093]
[1750731235736,5.76025055,143.09,143.05,104.03047268]
[1750731235931,5.76025055,143.1,143.05,109.79072323]
[1750731236132,5.76025055,143.1,143.06,5.76025055]
[1750731236453,5.12662675,143.14,143.06,24.40989941]
[1750731236635,5.76025055,143.11,143.06,108.04964886]
[1750731236836,5.76025055,143.11,143.07,6.98958551]
[1750731237253,5.12662675,143.14,143.07,6.98958551]
[1750731237436,5.76025055,143.11,143.07,96.38958551]
[1750731239662,5.76025055,143.1,143.07,89.4]
[1750731240043,5.12662675,143.13,143.07,96.38940224]
[1750731240269,5.76025055,143.1,143.07,96.38940224]
[1750731240456,5.76025055,143.1,143.07,89.4]
[1750731241149,5.76025055,143.1,143.07,96.38955863]
[1750731241551,5.76025055,143.1,143.06,6.98991823]
[1750731242356,5.76025055,143.1,143.06,31.39981764]
[1750731242540,5.76025055,143.11,143.06,31.39981764]
[1750731242961,5.76025055,143.1,143.06,25.63956709]
[1750731243969,31.13107243,143.13,143.06,25.63956709]
[1750731244154,5.76025055,143.1,143.06,31.39981764]
[1750731245153,5.76025055,143.11,143.07,24.40989941]
[1750731245643,5.76025055,143.11,143.08,6.989097]
[1750731247452,5.76025055,143.11,143.08,96.389097]
[1750731251364,5.76025055,143.12,143.08,96.389097]
[1750731251767,26.0,143.13,143.08,102.14934755]
[1750731251969,5.13107243,143.15,143.11,5.76025055]
[1750731252149,10.89132298,143.16,143.11,95.16025055]
[1750731252467,5.76025055,143.16,143.11,95.16025055]
[1750731253054,5.76025055,143.16,143.11,102.14754408]
[1750731253470,5.76025055,143.15,143.11,96.38729353]
[1750731253762,5.76025055,143.15,143.11,102.14754408]
[1750731254066,5.76025055,143.12,143.09,89.4]
[1750731254380,5.76025055,143.12,143.09,96.38854665]
[1750731255080,5.76025055,143.12,143.09,89.4]
[1750731255955,31.13107243,143.14,143.09,89.4]
[1750731256154,5.76025055,143.11,143.09,89.4]
[1750731257168,5.76025055,143.12,143.09,96.38850919]
[1750731259662,5.76025055,143.13,143.09,96.38850919]
[1750731260170,5.76025055,143.14,143.1,5.76025055]
[1750731260684,5.13107243,143.15,143.11,18.64964886]
[1750731260863,5.76025055,143.16,143.11,108.04964886]
[1750731261052,10.89132298,143.16,143.11,113.80989941]
[1750731261253,5.76025055,143.16,143.12,6.98714365]
[1750731261861,5.76025055,143.17,143.12,20.7166942]
[1750731262157,5.76025055,143.16,143.12,14.95644365]
[1750731263754,26.0,143.18,143.12,20.7166942]
[1750731263958,5.76025055,143.17,143.13,24.40989941]
[1750731264370,31.76025055,143.18,143.13,24.40989941]
[1750731264978,5.76025055,143.16,143.13,18.64964886]
[1750731265183,5.76025055,143.16,143.13,108.04964886]
[1750731265479,5.76025055,143.16,143.13,115.03587556]
[1750731268869,5.76025055,143.17,143.13,115.03587556]
[1750731269961,5.76025055,143.16,143.13,115.03587556]
[1750731270763,5.76025055,143.14,143.1,7.28]
[1750731271087,5.76025055,143.13,143.1,14.26804332]
[1750731271266,5.76025055,143.13,143.1,7.28]
[1750731271467,5.76025055,143.14,143.1,14.26782815]
[1750731274484,5.76025055,143.13,143.1,14.26782815]
[1750731275184,5.76025055,143.13,143.1,7.28]
[1750731275381,5.76025055,143.12,143.1,7.28]
[1750731276971,5.76025055,143.12,143.1,96.68]
[1750731278190,5.76025055,143.11,143.1,96.68]
[1750731278486,5.76025055,143.11,143.1,7.28]
[1750731279591,5.76025055,143.12,143.1,7.28]
[1750731279970,26.0,143.14,143.1,7.28]
[1750731280169,5.76025055,143.12,143.1,7.28]
[1750731280574,5.76025055,143.11,143.1,7.28]
[1750731280992,5.76025055,143.11,143.09,89.4]
[1750731281184,5.76025055,143.12,143.09,89.4]
[1750731281780,5.76025055,143.13,143.09,96.3884272]
[1750731283066,26.0,143.14,143.09,96.3884272]
[1750731283271,5.76025055,143.13,143.09,96.3884272]
[1750731283673,26.0,143.14,143.1,24.40989941]
[1750731283878,5.76025055,143.16,143.12,18.64964886]
[1750731284086,5.76025055,143.16,143.12,108.04964886]
[1750731284573,26.0,143.18,143.12,113.80989941]
[1750731284574,5.76025055,143.17,143.12,113.80989941]
[1750731284787,26.0,143.18,143.12,113.80989941]
[1750731284788,5.76025055,143.18,143.12,108.04964886]
[1750731285098,5.76025055,143.18,143.14,5.76025055]
[1750731285290,5.76025055,143.18,143.15,6.98567935]
[1750731285586,26.0,143.2,143.15,6.98567935]
[1750731285797,5.76025055,143.19,143.15,6.98567935]
[1750731287832,5.76025055,143.21,143.16,24.40989941]
[1750731287988,5.13594976,143.22,143.17,5.76025055]
[1750731287989,5.76025055,143.22,143.17,5.76025055]
[1750731289195,26.0,143.23,143.16,18.64964886]
[1750731289196,5.76025055,143.21,143.16,24.40989941]
[1750731289590,5.76025055,143.21,143.17,6.98470349]
[1750731290288,26.0,143.22,143.17,6.98470349]
[1750731290481,5.76025055,143.22,143.18,24.40989941]
[1750731290688,5.76025055,143.23,143.18,24.40989941]
[1750731291279,5.76025055,143.23,143.2,18.64964886]
[1750731291491,5.76025055,143.23,143.2,25.63255613]
[1750731291685,5.76025055,143.24,143.2,25.63255613]
[1750731291880,5.76025055,143.25,143.21,5.76025055]
[1750731292179,5.76025055,143.24,143.2,7.7168]
[1750731292377,26.0,143.25,143.2,7.7168]
[1750731292572,5.76025055,143.23,143.2,7.7168]
[1750731294677,5.76025055,143.22,143.18,31.39398662]
[1750731294879,5.76025055,143.22,143.18,25.63373607]
[1750731295105,5.76025055,143.22,143.18,31.39398662]
[1750731296690,5.76025055,143.2,143.18,89.4]
[1750731296891,5.76025055,143.19,143.18,89.4]
[1750731297092,5.76025055,143.19,143.16,97.3333]
[1750731298410,5.76025055,143.18,143.16,97.3333]
[1750731298907,5.76025055,143.17,143.14,108.04964886]
[1750731299198,5.76025055,143.15,143.14,89.4]
[1750731299403,5.76025055,143.15,143.13,96.64]
[1750731299601,5.76025055,143.14,143.13,96.64]
[1750731300194,5.76025055,143.15,143.13,96.64]
[1750731300910,5.76025055,143.14,143.1,25.63762609]
[1750731301118,5.76025055,143.12,143.08,15.1652]
[1750731301287,5.76025055,143.12,143.09,18.64964886]
[1750731301710,5.76025055,143.13,143.09,24.40989941]
[1750731301908,5.76025055,143.15,143.1,5.76025055]
[1750731302698,5.76025055,143.15,143.11,6.98763189]
[1750731303995,5.76025055,143.14,143.11,6.98763189]
[1750731305808,26.0,143.16,143.11,6.98763189]
[1750731305999,5.76025055,143.14,143.11,6.98763189]
[1750731306586,5.76025055,143.15,143.11,96.38763189]
[1750731307706,5.76025055,143.15,143.12,18.64964886]
[1750731308009,5.76025055,143.15,143.13,6.98665548]
[1750731308212,5.76025055,143.15,143.13,89.4]
[1750731308392,5.76025055,143.14,143.13,89.4]
[1750731310304,26.0,143.18,143.13,89.4]
[1750731310305,26.0,143.16,143.13,89.4]
[1750731310496,5.76025055,143.14,143.09,108.04964886]
[1750731310697,5.76025055,143.12,143.09,89.4]
[1750731311810,26.0,143.16,143.09,96.38836605]
[1750731312018,5.76025055,143.14,143.1,18.64964886]
[1750731312214,5.76025055,143.14,143.1,25.63734481]
[1750731312412,5.76025055,143.13,143.1,25.63734481]
[1750731312726,5.76025055,143.14,143.1,25.63734481]
[1750731313225,5.76025055,143.13,143.1,25.63734481]
[1750731313594,5.76025055,143.13,143.09,95.16025055]
[1750731313595,5.76025055,143.12,143.09,89.4]
[1750731314127,5.76025055,143.11,143.09,89.4]
[1750731314627,26.0,143.16,143.09,89.4]
[1750731314628,5.76025055,143.12,143.09,89.4]
[1750731314817,5.76025055,143.12,143.09,96.38854824]
[1750731315122,5.76025055,143.13,143.09,96.38854824]
[1750731315335,5.76025055,143.14,143.1,18.64964886]
[1750731315621,5.76025055,143.14,143.1,108.04964886]
[1750731316200,5.76025055,143.14,143.1,113.80989941]
[1750731316518,5.76025055,143.14,143.1,115.0372993]
[1750731316726,26.0,143.16,143.1,115.0372993]
[1750731316899,5.76025055,143.14,143.1,115.0372993]
[1750731317299,5.76025055,143.15,143.1,120.79754985]
[1750731317503,26.0,143.16,143.1,120.79754985]
[1750731317705,5.76025055,143.16,143.11,18.79181043]
[1750731318000,5.76025055,143.15,143.11,24.40989941]
[1750731318404,5.76025055,143.16,143.11,24.40989941]
[1750731318611,5.76025055,143.16,143.12,6.98714365]
[1750731319314,26.0,143.18,143.12,6.98714365]
[1750731319619,5.76025055,143.16,143.12,6.98714365]
[1750731320004,26.0,143.2,143.13,18.64964886]
[1750731320210,5.76025055,143.17,143.13,18.64964886]
[1750731320413,5.76025055,143.16,143.13,18.64964886]
[1750731320731,5.76025055,143.16,143.14,6.98616738]
[1750731322031,5.76025055,143.17,143.14,6.98616738]
[1750731322928,5.76025055,143.16,143.12,18.64964886]
[1750731323133,5.76025055,143.15,143.12,25.63679251]
[1750731323822,31.76025055,143.2,143.12,25.63679251]
[1750731323823,5.76025055,143.13,143.12,89.4]
[1750731324129,5.76025055,143.13,143.1,96.38779063]
[1750731324330,5.76025055,143.12,143.1,96.38779063]
[1750731324642,5.76025055,143.12,143.1,89.4]
[1750731325217,5.76025055,143.11,143.1,89.4]
[1750731325413,5.76025055,143.11,143.09,96.38848608]
[1750731325609,5.76025055,143.1,143.08,14.18902406]
[1750731325831,5.76025055,143.09,143.08,14.18902406]
[1750731326830,26.0,143.14,143.08,14.18902406]
[1750731327029,5.76025055,143.1,143.08,14.18902406]
[1750731328046,5.76025055,143.09,143.08,14.18902406]
[1750731328229,5.76025055,143.1,143.08,14.18902406]
[1750731331845,5.76025055,143.11,143.08,14.18902406]
[1750731332229,26.0,143.14,143.08,14.18902406]
[1750731332428,5.76025055,143.11,143.08,103.58902406]
[1750731334965,26.0,143.14,143.08,103.58902406]
[1750731335245,5.76025055,143.11,143.08,103.58902406]
[1750731338137,5.76025055,143.1,143.08,103.58902406]
[1750731338851,5.76025055,143.11,143.08,103.58902406]
[1750731340657,5.76025055,143.09,143.06,125.28194075]
[1750731340835,5.76025055,143.07,143.06,125.28194075]
[1750731345457,1.646,143.1,143.06,125.28194075]
[1750731345665,5.76025055,143.07,143.06,125.28194075]
[1750731352081,11.66266267,143.07,143.06,35.57075722]
[1750731352368,11.66266267,143.07,143.0,89.4]
[1750731352369,26.0,143.04,143.0,89.4]
[1750731352563,5.76025055,143.03,142.99,6.99349604]
[1750731352773,5.76025055,143.03,142.99,12.75374659]
[1750731353072,5.76025055,143.03,143.0,18.64964886]
[1750731353463,5.76025055,143.02,142.99,6.99349604]
[1750731354570,30.40216157,143.09,142.99,6.99349604]
[1750731354571,5.76025055,143.03,142.99,6.99349604]
[1750731356051,5.76025055,143.02,142.99,6.99349604]
[1750731356365,5.76025055,143.03,142.99,6.99349604]
[1750731356555,5.76025055,143.03,142.99,12.75374659]
[1750731356947,5.76025055,143.03,143.0,25.64255359]
[1750731360772,5.76025055,143.04,143.0,31.40280414]
[1750731361378,5.76025055,143.04,143.0,25.64255359]
[1750731361690,5.76025055,143.03,143.0,25.64255359]
[1750731362888,5.76025055,143.02,143.0,89.4]
[1750731363390,5.76025055,143.01,143.0,89.4]
[1750731363577,5.76025055,143.01,142.98,103.55368277]
[1750731363770,5.76025055,143.0,142.98,96.56]
[1750731364184,5.76025055,143.0,142.98,103.55396477]
[1750731364367,5.76025055,143.01,142.98,103.55396477]
[1750731364568,5.76025055,143.02,142.98,103.55396477]
[1750731364871,5.76025055,143.0,142.98,7.16]
[1750731365182,5.76025055,142.99,142.97,89.4]
[1750731365385,26.0,143.04,142.96,96.39482064]
[1750731365591,5.76025055,143.0,142.96,102.15507119]
[1750731365813,31.76025055,143.04,142.99,24.40989941]
[1750731366090,31.76025055,143.04,142.99,113.80989941]
[1750731366588,5.76025055,143.03,142.99,113.80989941]
[1750731366799,5.76025055,143.03,142.99,115.04275258]
[1750731369062,5.76025055,143.03,142.99,120.80300313]
[1750731371880,31.76025055,143.04,142.99,120.80300313]
[1750731373181,31.76025055,143.04,142.96,17.48740906]
[1750731373182,31.76025055,143.04,142.96,95.16025055]
[1750731373376,26.0,143.04,142.97,31.40431074]
[1750731373704,26.0,143.04,142.98,18.64964886]
[1750731373705,5.76025055,143.03,142.98,18.64964886]
[1750731373877,5.76025055,143.03,142.98,24.40989941]
[1750731374671,5.76025055,143.03,142.99,6.99349604]
[1750731374874,5.76025055,143.03,142.99,96.39349604]
[1750731376077,5.76025055,143.02,142.99,96.39349604]
[1750731376588,5.76025055,143.03,142.99,96.39349604]
[1750731376987,5.76025055,143.03,142.99,102.15374659]
[1750731378899,5.76025055,143.05,143.01,5.76025055]
[1750731379279,5.76025055,143.05,143.01,95.16025055]
[1750731380607,5.76025055,143.05,143.01,89.4]
[1750731380983,5.76025055,143.05,143.01,96.39218005]
[1750731382104,26.0,143.07,143.01,96.39218005]
[1750731382290,5.76025055,143.06,143.01,102.1524306]
[1750731382474,5.76025055,143.05,143.01,102.1524306]
[1750731384202,5.76025055,143.05,143.01,96.39218005]
[1750731384405,5.76025055,143.05,143.01,102.1524306]
[1750731385457,1.6173,143.09,143.02,24.40989941]
[1750731385707,5.76025055,143.09,143.04,24.40989941]
[1750731385881,5.76025055,143.08,143.04,108.04964886]
[1750731386081,5.76025055,143.08,143.04,113.80989941]
[1750731387387,5.76025055,143.08,143.04,120.80058184]
[1750731388605,5.76025055,143.09,143.04,120.80058184]
[1750731388976,14.48337249,143.11,143.06,18.64964886]
[1750731389197,5.76025055,143.1,143.06,24.40989941]
[1750731389397,20.24362304,143.11,143.06,24.40989941]
[1750731389916,5.76025055,143.1,143.06,18.64964886]
[1750731390112,5.76025055,143.1,143.07,6.98958551]
[1750731394397,20.24362304,143.11,143.07,6.98958551]
[1750731395014,14.48337249,143.11,143.08,24.40989941]
[1750731396229,14.48337249,143.11,143.09,6.98860856]
[1750731397936,5.76025055,143.1,143.04,7.9592]
[1750731398135,5.76025055,143.07,143.04,7.9592]
[1750731398646,5.76025055,143.05,143.01,89.4]
[1750731398813,5.76025055,143.02,143.0,7.12]
[1750731399012,5.76025055,143.02,142.98,6.99384168]
[1750731399013,5.76025055,143.01,142.97,14.93840707]
[1750731399226,5.76025055,143.0,142.96,12.75508321]
[1750731399528,5.76025055,143.0,142.97,18.64964886]
[1750731399710,5.76025055,143.0,142.96,12.75508321]
[1750731399711,5.76025055,142.99,142.96,6.99483266]
[1750731399913,5.76025055,142.99,142.95,14.07528206]
[1750731403708,5.76025055,142.96,142.91,5.76025055]
[1750731403911,5.76025055,142.96,142.92,18.64964886]
[1750731404706,26.0,143.0,142.92,24.40989941]
[1750731404926,5.76025055,142.98,142.94,18.64964886]
[1750731405229,5.76025055,142.95,142.92,18.64964886]
[1750731405428,5.76025055,142.94,142.92,25.64654429]
[1750731405633,5.76025055,142.95,142.92,25.64654429]
[1750731406423,5.76025055,142.96,142.92,25.64654429]
[1750731407239,26.0,143.0,142.92,18.64964886]
[1750731407413,5.76025055,142.95,142.92,18.64964886]
[1750731407624,5.76025055,142.95,142.92,25.64652817]
[1750731408844,5.76025055,142.94,142.91,18.64964886]
[1750731409312,5.76025055,142.93,142.9,7.08]
[1750731410108,1.5213,142.98,142.9,7.08]
[1750731410109,5.76025055,142.91,142.9,7.08]
[1750731410339,5.76025055,142.93,142.9,7.08]
[1750731410514,5.76025055,142.94,142.9,14.07787763]
[1750731411335,26.0,142.97,142.9,14.07787763]
[1750731411535,5.76025055,142.95,142.91,18.64964886]
[1750731412040,26.0,142.97,142.91,18.64964886]
[1750731412234,5.76025055,142.97,142.92,5.76025055]
[1750731413426,5.76025055,142.97,142.93,6.99643181]
[1750731415321,5.76025055,142.96,142.93,6.99643181]
[1750731415937,5.76025055,142.96,142.92,12.75700602]
[1750731416137,5.76025055,142.96,142.92,6.99675547]
[1750731416844,5.76025055,142.96,142.92,12.75700602]
[1750731418942,5.76025055,142.96,142.92,102.15700602]
[1750731421444,5.76025055,142.95,142.92,89.4]
[1750731421739,5.76025055,142.95,142.92,96.39686167]
[1750731421949,5.76025055,142.96,142.92,96.39686167]
[1750731422122,26.0,142.99,142.92,89.4]
[1750731422123,5.76025055,142.95,142.92,89.4]
[1750731422450,5.76025055,142.94,142.92,89.4]
[1750731422984,5.76025055,142.93,142.9,96.48]
[1750731423123,5.76025055,142.92,142.9,96.48]
[1750731423318,5.76025055,142.91,142.9,89.4]
[1750731423524,5.76025055,142.92,142.9,89.4]
[1750731423759,5.76025055,142.92,142.9,96.39790062]
[1750731424129,5.76025055,142.93,142.9,96.39790062]
[1750731425350,5.76025055,142.93,142.9,89.4]
[1750731425519,5.76025055,142.91,142.9,89.4]
[1750731425724,26.0,142.95,142.9,89.4]
[1750731425924,5.76025055,142.91,142.9,89.4]
[1750731427173,5.76025055,142.91,142.87,141.73929159]
[1750731427372,5.76025055,142.91,142.87,96.39929159]
[1750731427668,5.76025055,142.91,142.88,18.64964886]
[1750731427862,5.76025055,142.92,142.88,18.64964886]
[1750731428060,5.76025055,142.92,142.88,24.40989941]
[1750731428257,5.76025055,142.93,142.88,24.40989941]
[1750731429467,5.76025055,142.93,142.89,6.99839037]
[1750731429656,5.76025055,142.95,142.9,24.40989941]
[1750731429858,5.76025055,142.95,142.9,108.04964886]
[1750731430161,5.76025055,142.95,142.9,113.80989941]
[1750731430357,5.76025055,142.96,142.92,18.64964886]
[1750731430557,5.76025055,142.96,142.92,5.76025055]
[1750731430758,5.76025055,142.96,142.91,24.40989941]
[1750731431648,5.76025055,142.96,142.92,6.99692135]
[1750731432769,5.76025055,142.97,142.92,12.7571719]
[1750731433153,5.76025055,142.96,142.92,12.7571719]
[1750731433854,5.76025055,142.96,142.93,18.64964886]
[1750731434544,5.76025055,142.96,142.93,25.64569931]
[1750731437064,5.76025055,142.96,142.92,96.3967586]
[1750731437247,5.76025055,142.94,142.92,89.4]
[1750731437570,5.76025055,142.93,142.89,89.4]
[1750731437774,5.76025055,142.91,142.89,89.4]
[1750731438162,5.76025055,142.9,142.89,89.4]
[1750731438367,5.76025055,142.9,142.86,102.89225055]
[1750731438684,5.76025055,142.91,142.87,18.64964886]
[1750731439051,5.76025055,142.91,142.87,25.64898904]
[1750731439282,26.0,142.92,142.87,18.64964886]
[1750731439478,5.76025055,142.89,142.87,108.04964886]
[1750731439652,5.76025055,142.9,142.87,108.04964886]
[1750731439985,6.6515,142.95,142.87,108.04964886]
[1750731439986,5.76025055,142.89,142.87,89.4]
[1750731440273,5.76025055,142.88,142.85,103.44028537]
[1750731440498,6.6515,142.95,142.85,103.44028537]
[1750731440499,5.76025055,142.87,142.85,103.44028537]
[1750731440681,5.76025055,142.88,142.83,89.4]
[1750731440857,5.76025055,142.87,142.83,89.4]
[1750731441177,5.76025055,142.87,142.84,18.64964886]
[1750731441874,5.76025055,142.88,142.84,25.65048896]
[1750731442082,5.76025055,142.89,142.84,31.41073951]
[1750731442672,5.76025055,142.85,142.81,8.50211945]
[1750731443861,5.76025055,142.85,142.82,18.64964886]
[1750731444183,5.76025055,142.86,142.82,18.64964886]
[1750731444483,5.76025055,142.84,142.81,1.4999656]
[1750731444658,5.76025055,142.85,142.81,8.50210613]
[1750731444860,26.0,142.88,142.81,8.50210613]
[1750731445063,5.76025055,142.85,142.81,8.50210613]
[1750731445264,5.76025055,142.84,142.81,1.4999656]
[1750731445464,5.76025055,142.84,142.81,8.5022499]
[1750731445761,31.76025055,142.88,142.81,8.5022499]
[1750731445762,5.76025055,142.85,142.81,8.5022499]
[1750731446074,5.76025055,142.86,142.82,18.64964886]
[1750731446275,5.76025055,142.85,142.82,18.64964886]
[1750731448181,5.76025055,142.83,142.81,90.8999656]
[1750731448384,5.76025055,142.82,142.81,90.8999656]
[1750731448596,5.76025055,142.82,142.81,1.4999656]
[1750731448778,31.76025055,142.88,142.81,1.4999656]
[1750731448779,5.76025055,142.83,142.81,1.4999656]
[1750731449396,31.76025055,142.88,142.81,1.4999656]
[1750731449397,5.76025055,142.84,142.81,1.4999656]
[1750731449767,31.76025055,142.88,142.81,1.4999656]
[1750731449974,5.76025055,142.83,142.81,1.4999656]
[1750731450168,5.76025055,142.82,142.81,1.4999656]
[1750731450858,1.665,142.85,142.81,1.4999656]
[1750731451066,5.76025055,142.82,142.81,1.4999656]
[1750731452573,5.76025055,142.83,142.81,1.4999656]
[1750731452779,5.76025055,142.82,142.81,1.4999656]
[1750731455064,5.76025055,142.83,142.81,1.4999656]
[1750731456887,27.665,142.85,142.81,1.4999656]
[1750731457076,5.76025055,142.84,142.81,97.90209581]
[1750731458985,5.76025055,142.84,142.81,90.8999656]
[1750731459785,5.76025055,142.83,142.81,90.8999656]
[1750731460190,5.76025055,142.83,142.81,97.90221706]
[1750731460877,5.76025055,142.83,142.81,90.8999656]
[1750731461793,5.76025055,142.82,142.81,90.8999656]
[1750731463176,5.76025055,142.83,142.81,90.8999656]
[1750731463376,5.76025055,142.82,142.81,1.4999656]
[1750731465271,31.76025055,142.82,142.81,1.4999656]
[1750731466778,5.76025055,142.82,142.81,1.4999656]
[1750731468676,5.76025055,142.83,142.81,1.4999656]
[1750731470792,26.0,142.85,142.81,1.4999656]
[1750731470793,5.76025055,142.82,142.81,1.4999656]